fUSD/lending_fUSD_20240803
["ID","MTS","AMOUNT","RATE_DAILY","PERIOD"]
[334021342,1722683442261,-1122.0,0.00022682,4]
[334021344,1722683442271,-14756.94,0.00022682,4]
[334021346,1722683442281,-1022.13,0.00022682,4]
[334021348,1722683442290,-529.36,0.00022682,4]
[334021350,1722683442299,-500.0,0.00022686,2]
[334021352,1722683442309,-929.564653,0.00022688,2]
[334021354,1722683442318,-1600.0,0.0002269,2]
[334021356,1722683442328,-500.0,0.00022695,2]
[334021358,1722683442337,-500.0,0.00022725,2]
[334021360,1722683442346,-2402.24,0.00022739,4]
[334021362,1722683442356,-2000.0,0.00022739,2]
[334021364,1722683442366,-500.0,0.00022747,2]
[334021365,1722683442375,-500.0,0.00022759,2]
[334021367,1722683442384,-500.0,0.00022782,4]
[334021369,1722683442395,-518.53,0.00022782,4]
[334021371,1722683442405,-702.97,0.00022782,4]
[334021373,1722683442414,-500.0,0.00022782,4]
[334021375,1722683442423,-703.2,0.00022782,4]
[334021377,1722683442433,-1104.0,0.00022782,4]
[334021379,1722683442442,-500.0,0.00022782,4]
[334021381,1722683442451,-500.0,0.00022782,4]
[334021382,1722683442460,-908.15,0.0002279,7]
[334021384,1722683442469,-908.15,0.0002279,7]
[334021386,1722683442479,-5757.27783905,0.00022791,2]
[334021388,1722683442488,-1600.0,0.00022796,2]
[334021390,1722683442497,-150.0,0.00022808,120]
[334021391,1722683442507,-300.0,0.0002281,4]
[334021393,1722683442516,-500.0,0.00022817,2]
[334021395,1722683442526,-500.0,0.00022836,2]
[334021397,1722683442535,-500.0,0.0002284,2]
[334021399,1722683442544,-500.0,0.00022898,2]
[334021401,1722683442553,-178.99127337,0.00022902,2]
[334021403,1722683442562,-600.0,0.00022906,2]
[334021405,1722683442576,-500.0,0.00022911,2]
[334021407,1722683442585,-150.0,0.00022941,120]
[334021409,1722683442595,-505.52,0.00022956,4]
[334021411,1722683442604,-780.12,0.00022956,4]
[334021413,1722683442613,-4347.65,0.00022956,4]
[334021415,1722683442623,-1122.0,0.00022956,4]
[334021417,1722683442631,-14756.94,0.00022956,4]
[334021419,1722683442641,-1022.13,0.00022956,4]
[334021421,1722683442651,-529.36,0.00022956,4]
[334021423,1722683442661,-500.0,0.00022975,2]
[334021425,1722683442670,-284.7756495,0.00022984,2]
[334021427,1722683442680,-288.0080383,0.00022984,2]
[334021429,1722683442690,-4186.8591126,0.00022984,2]
[334021431,1722683442702,-9793.8937757,0.00022984,2]
[334021433,1722683442711,-1811.076934,0.00022984,2]
[334021435,1722683442720,-1000.23086998,0.00022997,10]
[334021436,1722683442729,-500.0,0.00022998,2]
[334021438,1722683442738,-10657.75,0.00023,2]
[334021440,1722683442747,-646.541,0.00023,2]
[334021442,1722683442757,-10657.751,0.00023,2]
[334021444,1722683442766,-646.542,0.00023,2]
[334021446,1722683442775,-217.963,0.00023,2]
[334021448,1722683442784,-217.964,0.00023,2]
[334021450,1722683442793,-646.542,0.00023,2]
[334021452,1722683442803,-10657.75,0.00023,2]
[334021454,1722683442813,-646.542,0.00023,2]
[334021456,1722683442823,-10657.751,0.00023,2]
[334021458,1722683442833,-646.542,0.00023,2]
[334021460,1722683442843,-10657.75,0.00023,2]
[334021462,1722683442852,-200.0,0.00023,3]
[334021464,1722683442863,-173.0,0.00023,2]
[334021466,1722683442874,-10000.0,0.00023,2]
[334021468,1722683442883,-10007.0206695,0.00023,2]
[334021470,1722683442892,-10942.03813985,0.00023,2]
[334021472,1722683442901,-7560.5301894,0.00023,2]
[334021474,1722683442910,-10388.10075882,0.00023,2]
[334021476,1722683442921,-155.0,0.00023,2]
[334021478,1722683442932,-173.0,0.00023,2]
[334021480,1722683442941,-263.88806931,0.0002301,2]
[334021482,1722683442950,-2402.24,0.00023013,4]
[334021484,1722683442961,-2000.0,0.00023013,2]
[334021486,1722683442972,-500.0,0.00023048,2]
[334021488,1722683442981,-500.0,0.0002305,2]
[334021490,1722683442991,-500.0,0.00023056,4]
[334021492,1722683443002,-518.53,0.00023056,4]
[334021494,1722683443012,-702.97,0.00023056,4]
[334021496,1722683443021,-500.0,0.00023056,4]
[334021498,1722683443031,-703.2,0.00023056,4]
[334021500,1722683443040,-1104.0,0.00023056,4]
[334021502,1722683443049,-500.0,0.00023056,4]
[334021504,1722683443059,-500.0,0.00023056,4]
[334021506,1722683443068,-908.15,0.00023063,7]
[334021508,1722683443077,-908.15,0.00023063,7]
[334021510,1722683443087,-2512.34,0.00023063,2]
[334021512,1722683443096,-150.0,0.00023071,2]
[334021514,1722683443106,-500.0,0.00023072,2]
[334021516,1722683443115,-2501.12,0.00023081,2]
[334021518,1722683443125,-600.0,0.00023103,2]
[334021520,1722683443134,-153.3909946,0.00023107,2]
[334021522,1722683443144,-150.0,0.00023121,120]
[334021524,1722683443153,-381.52401585,0.00023151,2]
[334021526,1722683443163,-14328.58713958,0.00023151,2]
[334021528,1722683443172,-3999.23,0.00023177,2]
[334021530,1722683443182,-500.0,0.00023192,2]
[334021532,1722683443191,-180.0,0.00023205,2]
[334021534,1722683443201,-150.0,0.00023207,120]
[334021536,1722683443210,-500.0,0.00023208,2]
[334021538,1722683443220,-500.0,0.00023211,2]
[334021540,1722683443230,-500.0,0.00023215,2]
[334021542,1722683443239,-505.52,0.0002323,4]
[334021544,1722683443249,-780.12,0.0002323,4]
[334021546,1722683443258,-4347.65,0.0002323,4]
[334021548,1722683443268,-1122.0,0.0002323,4]
[334021551,1722683443277,-14756.94,0.0002323,4]
[334021554,1722683443286,-1022.13,0.0002323,4]
[334021557,1722683443295,-529.36,0.0002323,4]
[334021560,1722683443305,-150.0,0.00023231,120]
[334021563,1722683443314,-4715.27,0.00023241,2]
[334021566,1722683443324,-1200.0,0.00023252,2]
[334021568,1722683443334,-500.0,0.00023259,2]
[334021572,1722683443344,-1200.0,0.00023261,2]
[334021575,1722683443354,-500.0,0.00023264,2]
[334021578,1722683443364,-500.0,0.00023268,2]
[334021581,1722683443373,-500.0,0.0002327,2]
[334021584,1722683443383,-1600.0,0.00023285,2]
[334021586,1722683443392,-2402.24,0.00023287,4]
[334021588,1722683443402,-2000.0,0.00023287,2]
[334021590,1722683443411,-380.0,0.00023288,2]
[334021592,1722683443421,-380.0,0.00023288,2]
[334021594,1722683443430,-380.0,0.00023288,2]
[334021596,1722683443440,-380.0,0.00023288,2]
[334021598,1722683443450,-380.0,0.00023288,2]
[334021600,1722683443459,-380.0,0.00023288,2]
[334021603,1722683443469,-380.0,0.00023288,2]
[334021606,1722683443478,-380.0,0.00023288,2]
[334021608,1722683443487,-395.04,0.00023288,2]
[334021611,1722683443496,-1258.0,0.000233,6]
[334021613,1722683443506,-150.0,0.00023303,120]
[334021615,1722683443516,-600.0,0.00023315,2]
[334021616,1722683443526,-500.0,0.0002333,4]
[334021618,1722683443535,-518.53,0.0002333,4]
[334021624,1722683443654,-702.97,0.0002333,4]
[334021626,1722683443664,-600.69365337,0.0002333,4]
[334021628,1722683443674,-703.2,0.0002333,4]
[334021630,1722683443684,-1104.0,0.0002333,4]
[334021632,1722683443694,-339.06415524,0.0002333,4]
[334021634,1722683443703,-249.18608245,0.0002333,4]
[334021636,1722683443714,-908.15,0.00023336,7]
[334021638,1722683443723,-908.15,0.00023336,7]
[334021640,1722683443733,-500.0,0.00023341,2]
[334021642,1722683443743,-500.0,0.00023366,2]
[334021644,1722683443753,-192.06,0.0002337,2]
[334021646,1722683443762,-150.0,0.0002337,2]
[334021648,1722683443772,-150.0,0.0002337,2]
[334021650,1722683443782,-530.42,0.0002337,2]
[334021652,1722683443791,-356.15,0.0002337,2]
[334021654,1722683443801,-150.0,0.0002337,2]
[334021656,1722683443811,-150.0,0.0002337,2]
[334021659,1722683443820,-530.42,0.0002337,2]
[334021661,1722683443829,-150.0,0.0002337,2]
[334021663,1722683443839,-150.0,0.0002337,2]
[334021665,1722683443848,-356.15,0.0002337,2]
[334021667,1722683443858,-150.0,0.0002337,2]
[334021669,1722683443867,-356.15,0.0002337,2]
[334021671,1722683443877,-150.0,0.0002337,2]
[334021673,1722683443887,-530.12,0.0002337,2]
[334021675,1722683443896,-355.8,0.0002337,2]
[334021677,1722683443906,-500.0,0.00023392,2]
[334021679,1722683443915,-2000.0,0.000234,2]
[334021681,1722683443928,-1978.4,0.000234,2]
[334021683,1722683443937,-1908.58,0.00023406,2]
[334021685,1722683443947,-500.0,0.00023427,2]
[334021687,1722683443956,-500.0,0.00023441,2]
[334021689,1722683443966,-500.0,0.0002346,2]
[334021691,1722683443976,-500.0,0.00023478,2]
[334021693,1722683443985,-5757.27783905,0.00023494,2]
[334021695,1722683443996,-500.0,0.00023495,2]
[334021697,1722683444006,-500.0,0.00023502,2]
[334021699,1722683444016,-505.52,0.00023504,4]
[334021701,1722683444025,-780.12,0.00023504,4]
[334021703,1722683444035,-4347.65,0.00023504,4]
[334021705,1722683444044,-1122.0,0.00023504,4]
[334021707,1722683444053,-14756.94,0.00023504,4]
[334021708,1722683444063,-1022.13,0.00023504,4]
[334021710,1722683444074,-529.36,0.00023504,4]
[334021712,1722683444084,-1600.0,0.00023531,2]
[334021714,1722683444093,-612.74,0.00023533,2]
[334021716,1722683444103,-500.0,0.00023542,2]
[334021718,1722683444112,-600.0,0.00023548,2]
[334021720,1722683444122,-1558.59,0.00023549,2]
[334021723,1722683444132,-2973.31,0.0002355,2]
[334021725,1722683444142,-3704.5526132,0.00023555,2]
[334021726,1722683444152,-439.71,0.0002356,2]
[334021728,1722683444162,-150.0,0.0002356,120]
[334021730,1722683444171,-2402.24,0.00023561,4]
[334021732,1722683444182,-2000.0,0.00023561,2]
[334021734,1722683444192,-1600.0,0.00023572,2]
[334021736,1722683444202,-429.70810092,0.00023604,4]
[334021738,1722683444211,-518.53,0.00023604,4]
[334021740,1722683444221,-702.97,0.00023604,4]
[334021742,1722683444230,-703.2,0.00023604,4]
[334021744,1722683444240,-1104.0,0.00023604,4]
[334021746,1722683444249,-3188.41,0.00023609,2]
[334021748,1722683444259,-908.15,0.00023609,7]
[334021750,1722683444270,-908.15,0.00023609,7]
[334021752,1722683444280,-500.0,0.00023616,2]
[334021754,1722683444290,-321.26,0.00023645,2]
[334021756,1722683444299,-1900.0,0.00023647,2]
[334021758,1722683444309,-500.0,0.00023648,2]
[334021760,1722683444319,-150.0,0.00023648,2]
[334021761,1722683444328,-600.0,0.00023652,2]
[334021763,1722683444338,-500.0,0.00023675,2]
[334021765,1722683444347,-1011.58,0.000237,2]
[334021767,1722683444357,-153.3909946,0.00023704,2]
[334021769,1722683444366,-202.67,0.00023712,2]
[334021771,1722683444375,-1600.0,0.00023715,2]
[334021773,1722683444386,-500.0,0.0002372,2]
[334021775,1722683444396,-1600.0,0.0002374,2]
[334021777,1722683444406,-563.12,0.00023758,2]
[334021778,1722683444416,-505.52,0.00023778,4]
[334021780,1722683444426,-780.12,0.00023778,4]
[334021782,1722683444437,-4347.65,0.00023778,4]
[334021784,1722683444447,-1122.0,0.00023778,4]
[334021786,1722683444457,-14756.94,0.00023778,4]
[334021788,1722683444466,-1022.13,0.00023778,4]
[334021790,1722683444476,-529.36,0.00023778,4]
[334021792,1722683444487,-500.0,0.00023798,2]
[334021794,1722683444496,-500.0,0.00023798,2]
[334021796,1722683444506,-150.0,0.00023803,2]
[334021797,1722683444517,-1600.0,0.0002382,2]
[334021799,1722683444531,-500.0,0.00023821,2]
[334021801,1722683444540,-2402.24,0.00023835,4]
[334021803,1722683444550,-2000.0,0.00023835,2]
[334021805,1722683444560,-500.0,0.00023852,2]
[334021807,1722683444571,-2501.12,0.00023859,2]
[334021809,1722683444582,-500.0,0.0002386,2]
[334021811,1722683444592,-1900.0,0.0002386,2]
[334021813,1722683444601,-600.0,0.00023863,2]
[334021815,1722683444611,-500.0,0.00023871,2]
[334021817,1722683444622,-500.0,0.00023872,2]
[334021819,1722683444632,-518.53,0.00023878,4]
[334021820,1722683444641,-702.97,0.00023878,4]
[334021822,1722683444651,-703.2,0.00023878,4]
[334021824,1722683444661,-1104.0,0.00023878,4]
[334021826,1722683444671,-500.0,0.0002388,2]
[334021828,1722683444681,-500.0,0.00023892,2]
[334021830,1722683444691,-1200.0,0.00023899,2]
[334021832,1722683444701,-615.60769127,0.000239,20]
[334021834,1722683444711,-1200.0,0.00023914,2]
[334021836,1722683444720,-4874.53,0.00023919,2]
[334021838,1722683444730,-500.0,0.00023944,2]
[334021840,1722683444740,-500.0,0.00023978,2]
[334021841,1722683444749,-284.7756495,0.00023984,2]
[334021843,1722683444759,-288.0080383,0.00023984,2]
[334021845,1722683444770,-4186.8591126,0.00023984,2]
[334021847,1722683444779,-7390.9125834,0.00023984,2]
[334021849,1722683444790,-1811.076934,0.00023984,2]
[334021851,1722683444800,-3475.28,0.00023988,2]
[334021853,1722683444809,-210.4083934,0.00024,2]
[334021854,1722683444819,-962.88608513,0.00024,2]
[334021856,1722683444828,-1158.0,0.00024,8]
[334021858,1722683444837,-155.095699,0.00024,15]
[334021860,1722683444846,-1000.84199463,0.00024,10]
[334021862,1722683444856,-47327.0,0.00024,5]
[334021864,1722683444866,-500.0,0.00024001,2]
[334021865,1722683444876,-150.0,0.00024003,120]
[334021867,1722683444886,-5000.0,0.00024007,2]
[334021869,1722683444895,-5000.0,0.00024017,2]
[334021871,1722683444905,-5000.0,0.00024018,2]
[334021873,1722683444914,-5000.0,0.00024032,2]
[334021875,1722683444927,-5000.0,0.00024034,2]
[334021877,1722683444936,-505.52,0.00024052,4]
[334021879,1722683444945,-780.12,0.00024052,4]
[334021881,1722683444955,-4347.65,0.00024052,4]
[334021883,1722683444965,-1122.0,0.00024052,4]
[334021885,1722683444975,-14756.94,0.00024052,4]
[334021887,1722683444985,-1022.13,0.00024052,4]
[334021889,1722683444995,-529.36,0.00024052,4]
[334021891,1722683445007,-5000.0,0.00024071,2]
[334021893,1722683445021,-5000.0,0.00024071,2]
[334021895,1722683445030,-3051.05244856,0.0002408,2]
[334021897,1722683445041,-394188.73739574,0.00024083,7]
[334021900,1722683445061,-12136.814338,0.00024083,7]
[334021902,1722683445072,-752.35031756,0.00024083,7]
[334021909,1722683445138,-288.19162452,0.00022044,2]
[334021910,1722683445148,-913.27997618,0.00024083,7]
[334021913,1722683445159,-326.66,0.00024083,7]
[334021915,1722683445170,-28678.38838452,0.00024083,7]
[334021917,1722683445182,-5689.85595278,0.00024083,7]
[334021919,1722683445194,-512.06122626,0.00024083,7]
[334021921,1722683445205,-1111.14398307,0.00024083,7]
[334021932,1722683445413,-5259.34458481,0.00024083,7]
[334021935,1722683445425,-13929.74214198,0.00024083,7]
[334021940,1722683445445,-155.0,0.00020999,2]
[334021943,1722683445454,-288.19162452,0.00022758,2]
[334021945,1722683445464,-2652.18418008,0.00024083,7]
[334021949,1722683445477,-2412.95,0.00024083,7]
[334021952,1722683445488,-124186.24102815,0.00024083,7]
[334021959,1722683445519,-18191.010751,0.00024083,7]
[334022119,1722683447411,-371.74166536,0.00018898,2]
[334022121,1722683447422,-288.19162452,0.00023472,2]
[334022123,1722683447432,-31.89410888,0.00024083,7]
[334022125,1722683447444,-855.65800931,0.00024083,7]
[334022127,1722683447456,-390.67842279,0.00024083,7]
[334022130,1722683447467,-1133.48489036,0.00024083,7]
[334022132,1722683447479,-542.39928832,0.00024083,7]
[334022134,1722683447490,-223864.52068619,0.00024083,7]
[334022136,1722683447502,-2584.80322748,0.00024083,7]
[334022139,1722683447514,-4545.31242003,0.00024083,7]
[334023305,1722683763723,154.12,0.00016764,30]
[334023307,1722684319454,1721.09639969,9e-05,2]
[334023309,1722684354766,1639.12892608,6.94e-05,2]
[334023310,1722684404167,227.60153513,6.94e-05,2]
[334023311,1722684434097,367.56511397,8.412e-05,2]
[334023312,1722684462374,227.60153513,8.412e-05,2]
[334023313,1722684480088,367.56511397,8.412e-05,2]
[334023314,1722684574142,227.60153513,8.412e-05,2]
[334023315,1722684588136,227.60153513,8.412e-05,2]
[334023316,1722684624246,-367.56511397,0.00010196,2]
[334023317,1722684624270,-300.0,0.00010566,2]
[334023318,1722684624296,-150.0,0.00010566,2]
[334023319,1722684628635,227.60153513,0.00010196,2]
[334023335,1722684631686,-5324.47701021,0.00010567,2]
[334023336,1722684631699,-28021.25817531,0.00010567,2]
[334023337,1722684631711,-604.58385019,0.00010567,2]
[334023338,1722684631722,-4114.08125678,0.00010567,2]
[334023339,1722684631733,-860.35582076,0.00010567,2]
[334023340,1722684631779,-569.99999994,0.00010567,2]
[334023341,1722684631792,-351.899999,0.00010567,2]
[334023342,1722684631806,-679.83163208,0.00010567,2]
[334023343,1722684631818,-1102.303279,0.00010567,2]
[334023344,1722684631830,-12493.87835216,0.00010567,2]
[334023345,1722684631842,-1594.50005461,0.00010567,2]
[334023346,1722684631853,-1381.95190557,0.00010567,2]
[334023347,1722684631865,-431.18512968,0.00010567,2]
[334023348,1722684631890,-1189.9692798,0.00010567,2]
[334023349,1722684631901,-3725.14623216,0.00010567,2]
[334023350,1722684631912,-12634.92367868,0.00010567,2]
[334023351,1722684631924,-7800.69533894,0.00010567,2]
[334023352,1722684631935,-699.74244279,0.00010567,2]
[334023353,1722684631946,-17027.15668226,0.00010567,2]
[334023354,1722684631957,-447.53187127,0.00010567,2]
[334023355,1722684631968,-905.34153942,0.00010567,2]
[334023356,1722684631979,-636.79253411,0.00010567,2]
[334023357,1722684631990,-955.65762198,0.00010567,2]
[334023358,1722684632002,-1339.32568212,0.00010567,2]
[334023359,1722684632013,-1494.80318096,0.00010567,2]
[334023360,1722684632024,-15943.39727998,0.00010567,2]
[334023361,1722684632042,-1711.99020892,0.00010567,2]
[334023362,1722684632053,-7131.37963767,0.00010567,2]
[334023363,1722684632065,-2219.57379425,0.00010567,2]
[334023364,1722684632076,-46678.2665294,0.00010567,2]
[334023365,1722684632086,-195.43511878,0.00010799,2]
[334023366,1722684632095,-192.12774968,0.00010899,2]
[334023367,1722684632104,-169.45112957,0.000109,2]
[334023368,1722684632114,-307.37552478,0.000109,2]
[334023369,1722684632123,-283.14353814,0.000109,2]
[334023370,1722684632132,-335.48,0.00010959,2]
[334023371,1722684632141,-14265.1628409,0.0001099,2]
[334023372,1722684632151,-152.27,0.0001099,2]
[334023373,1722684632160,-152.27,0.0001099,2]
[334023375,1722684632169,-152.27,0.0001099,2]
[334023377,1722684632179,-152.27,0.0001099,2]
[334023379,1722684632188,-152.27,0.0001099,2]
[334023381,1722684632198,-152.27,0.0001099,2]
[334023383,1722684632208,-152.27,0.0001099,2]
[334023385,1722684632217,-152.27,0.0001099,2]
[334023387,1722684632227,-152.27,0.0001099,2]
[334023389,1722684632236,-152.27,0.0001099,2]
[334023390,1722684632245,-152.27,0.0001099,2]
[334023391,1722684632254,-152.27,0.0001099,2]
[334023392,1722684632263,-152.27,0.0001099,2]
[334023393,1722684632272,-347.08735284,0.00010997,2]
[334023394,1722684632283,-500.0,0.00010999,2]
[334023395,1722684632292,-388.06155307,0.00010999,2]
[334023396,1722684632301,-261089.41037819,0.00011,2]
[334023397,1722684632319,-501.23538144,0.00011,2]
[334023398,1722684632330,-2903.71306986,0.00011,2]
[334023399,1722684632341,-3421.55845167,0.00011,2]
[334023400,1722684632352,-725.47357814,0.00011,2]
[334023401,1722684632364,-474.46635641,0.00011,2]
[334023402,1722684632376,-315.0,0.00011,2]
[334023403,1722684632394,-692270.38705696,0.00011,2]
[334023404,1722684632405,-7762.6841841,0.00011,2]
[334023405,1722684632417,-15602.263051,0.00011,2]
[334023406,1722684632428,-521.97670531,0.00011,2]
[334023407,1722684632439,-1610.6,0.00011,2]
[334023409,1722684637653,-6470.20833297,0.00011,2]
[334023410,1722684637664,-6525.06999584,0.00011,2]
[334023411,1722684637747,-397931.66994374,0.00011,2]
[334023412,1722684637759,-287984.59809126,0.00011,2]
[334023413,1722684637769,-250.0,0.00011,2]
[334023414,1722684637778,-281880.54230877,0.00011,2]
[334023415,1722684637791,-16075.72136431,0.00011,2]
[334023416,1722684637802,-1876.900965,0.00011,2]
[334023419,1722684638956,-413.27020903,0.00011,2]
[334023420,1722684638967,-1441.03869151,0.00011,2]
[334023421,1722684638978,-1019.83248483,0.00011,2]
[334023422,1722684638990,-7766.6385259,0.00011,2]
[334023423,1722684639000,-1340.26476761,0.00011,2]
[334023424,1722684639012,-1491.38576594,0.00011,2]
[334023425,1722684639023,-1651.94935281,0.00011,2]
[334023426,1722684639034,-4283.63537498,0.00011,2]
[334023427,1722684639045,-616.34199997,0.00011,2]
[334023428,1722684639056,-845.302431,0.00011,2]
[334023429,1722684639067,-28372.69788135,0.00011,2]
[334023430,1722684639077,-421.399227,0.00011,2]
[334023431,1722684639088,-60200.48900671,0.00011,2]
[334023432,1722684639098,-1046.41637075,0.00011,2]
[334023433,1722684639109,-5340.98495427,0.00011,2]
[334023434,1722684639120,-338.26352533,0.00011,2]
[334023435,1722684639131,-2506.77543946,0.00011,2]
[334023436,1722684639142,-2604.69232305,0.00011,2]
[334023437,1722684639153,-7969.17193469,0.00011,2]
[334023438,1722684639164,-3386.27530717,0.00011,2]
[334023439,1722684639175,-1278.81740778,0.00011,2]
[334023440,1722684639187,-4935.25711433,0.00011,2]
[334023441,1722684639199,-2090.85459822,0.00011,2]
[334023442,1722684639215,-264.54053448,0.00011,2]
[334023443,1722684639226,-7214.73959698,0.00011,2]
[334023444,1722684639237,-1145.08013776,0.00011,2]
[334023445,1722684639248,-12932.50083116,0.00011,2]
[334023446,1722684639258,-11216.25702667,0.00011,2]
[334023447,1722684639270,-20570.8866,0.00011,2]
[334023448,1722684639280,-6016.27157419,0.00011,2]
[334023449,1722684639292,-3195.01149625,0.00011,2]
[334023450,1722684639304,-785.23100942,0.00011,2]
[334023451,1722684639320,-648.10177974,0.00011,2]
[334023452,1722684639330,-13279.49385836,0.00011,2]
[334023453,1722684639342,-2676.10473281,0.00011,2]
[334023454,1722684639355,-731.87882422,0.00011,2]
[334023455,1722684639365,-509.16789362,0.00011,2]
[334023458,1722684639818,-52877.57373107,0.00011,2]
[334023459,1722684639908,-96960.11246096,0.00011,2]
[334023460,1722684640068,-4500.0,0.00011,2]
[334023461,1722684640079,-52892.09806927,0.00011,2]
[334023462,1722684640090,-889.49999995,0.00011,2]
[334023463,1722684640103,-714.85,0.00011,2]
[334023464,1722684640114,-400.075,0.00011,2]
[334023465,1722684640133,-519.18357221,0.00011,2]
[334023466,1722684640175,-50626.22628794,0.00011,2]
[334023467,1722684640185,-283.14353812,0.00011035,2]
[334023468,1722684640195,-283.14353812,0.0001117,2]
[334023469,1722684640204,-283.14353812,0.00011305,2]
[334023470,1722684640214,-283.14353812,0.0001144,2]
[334023471,1722684640223,-182.76098264,0.0001154,2]
[334023472,1722684640233,-420.0,0.00011622,2]
[334023473,1722684640243,-832.62816945,0.0001164,2]
[334023474,1722684640252,-832.62816944,0.0001164,2]
[334023475,1722684640261,-20783.82577,0.000118,2]
[334023477,1722684640271,-447.97,0.000119,2]
[334023479,1722684640281,-550.0,0.00012,2]
[334023481,1722684640291,-500.0,0.0001271,2]
[334023483,1722684640300,-500.0,0.00012719,2]
[334023485,1722684640309,-500.0,0.00012728,2]
[334023486,1722684640323,-500.0,0.00012737,2]
[334023489,1722684640334,-500.0,0.00012745,2]
[334023491,1722684640344,-500.0,0.00012754,2]
[334023493,1722684640355,-500.0,0.00012763,2]
[334023495,1722684640364,-500.0,0.00012772,2]
[334023497,1722684640374,-500.0,0.00012781,2]
[334023498,1722684640383,-482.0,0.00012784,2]
[334023500,1722684640395,-500.0,0.00012789,2]
[334023502,1722684640407,-500.0,0.00012798,2]
[334023504,1722684640416,-500.0,0.00012807,2]
[334023505,1722684640426,-500.0,0.00012816,2]
[334023507,1722684640435,-500.0,0.00012825,2]
[334023508,1722684640446,-500.0,0.00012833,2]
[334023509,1722684640455,-500.0,0.00012842,2]
[334023510,1722684640465,-500.0,0.00012851,2]
[334023511,1722684640475,-500.0,0.0001286,2]
[334023512,1722684640485,-500.0,0.00012869,2]
[334023513,1722684640494,-500.0,0.00012877,2]
[334023514,1722684640504,-500.0,0.00012886,2]
[334023515,1722684640513,-499.99,0.00012886,2]
[334023516,1722684640523,-500.0,0.00012895,2]
[334023517,1722684640532,-6046.84,0.00012895,2]
[334023518,1722684640542,-481.14,0.00012895,2]
[334023519,1722684640552,-500.0,0.00012904,2]
[334023520,1722684640562,-500.0,0.00012913,2]
[334023521,1722684640571,-150.99,0.00012913,2]
[334023522,1722684640581,-500.0,0.00012921,2]
[334023523,1722684640590,-4791.24375501,0.00013489,2]
[334023524,1722684640600,-152.27,0.00013507,2]
[334023525,1722684640609,-200.0,0.00013517,2]
[334023526,1722684640618,-250.0,0.00013596,2]
[334023527,1722684640628,-261.9,0.00013973,2]
[334023528,1722684640638,-155.0,0.00013986,2]
[334023529,1722684640647,-600.0,0.00014,2]
[334023530,1722684640656,-447.97,0.00014164,2]
[334023531,1722684640666,-162.4,0.00014816,2]
[334023532,1722684640676,-250.0,0.0001493,2]
[334023533,1722684640685,-447.97,0.00016428,2]
[334023534,1722684640695,-500.0,0.00016438,2]
[334023535,1722684640705,-500.0,0.00016438,2]
[334023536,1722684640715,-500.0,0.00016438,2]
[334023537,1722684640724,-525.67137251,0.00016712,2]
[334023538,1722684640734,-500.0,0.00016712,2]
[334023539,1722684640743,-500.0,0.00016712,2]
[334023540,1722684640753,-500.0,0.00016986,2]
[334023541,1722684640763,-500.0,0.00016986,2]
[334023542,1722684640772,-1000.0,0.00017053,2]
[334023543,1722684640782,-500.0,0.0001726,2]
[334023544,1722684640795,-500.0,0.0001726,2]
[334023545,1722684640805,-500.0,0.00017534,2]
[334023546,1722684640814,-500.0,0.00017534,2]
[334023547,1722684640824,-335.04,0.00017709,2]